Workbook

Sheet Hoja1
B2: FLUJO DE EFECTIVO PROYECTADO
B4: Inversión Inicial | C4: 2490000 | D4: II
B6: F.E. Proyectados | C6: Año 1 | D6: Año 2 | E6: Año 3 | F6: Año 4 | G6: Año 5
A7: UB | B7: Utilidad Neta | C7: 367465 | D7: 392854 | E7: 589246.672 | F7: 795792.5525 | G7: 845597.5491
A8: D | B8: Depreciación | C8: 113000 | D8: 113000 | E8: 113000 | F8: 113000 | G8: 113000
B9: Flujo Interno | C9: =C7+C8 -> 480465 | D9: =D7+D8 -> 505854 | E9: 702246.672 | F9: 908792.5525 | G9: 958597.5491
A10: RCTO | B10: Reinversión en C.T.O. | C10: 8000 | D10: -2160 | E10: -17501.76 | F10: -18485.1216 | G10: -3304.406448
B11: Sub Total | C11: =SUM(C9:C10) -> 488465 | D11: =SUM(D9:D10) -> 503694 | E11: =SUM(E9:E10) -> 684744.912 | F11: =SUM(F9:F10) -> 890307.4309 | G11: =SUM(G9:G10) -> 955293.1426
A12: A | B12: Amortización Deudas | C12: 149400 | D12: 149400 | E12: 149400 | F12: 149400 | G12: 149400
B13: Flujo para Socios | C13: =+C11-C12 -> 339065 | D13: =+D11-D12 -> 354294 | E13: 535344.912 | F13: 740907.4309 | G13: 805893.1426
A14: VTK | B14: Valor Terminal CTO | G14: 113451.288
A15: VTIF | B15: V. Terminal Inv. Fija | G15: 1140000
B16: Flujo de Caja Libre | C16: =FCL(C7,C8,C10,C12,C14,C15) -> 339065 | D16: =FCL(D7,D8,D10,D12,D14,D15) -> 354294 | E16: =FCL(E7,E8,E10,E12,E14,E15) -> 535344.912 | F16: 740907.4309 | G16: 2059344.431
F17: FA
G18: AA
B19: Año del Periodo | C19: 0 | D19: 1 | E19: 2 | F19: 3 | G19: 4 | H19: 5
B20: Flujo de Caja Libre | C20: =-C4 -> -2490000 | D20: =+C16 -> 339065 | E20: =+D16 -> 354294 | F20: =+E16 -> 535344.912 | G20: =+F16 -> 740907.4309 | H20: =+G16 -> 2059344.431 | I20: FE
B21: Flujo de Caja Acumulado | C21: =+C20 -> -2490000 | D21: =+D20 -> 339065 | E21: =+E20+D21 -> 693359 | F21: =+F20+E21 -> 1228703.912 | G21: =+G20+F21 -> 1969611.343 | H21: =+H20+G21 -> 4028955.774
B22: Variaciones del FC | D22: =+$C$21+D21 -> -2150935 | E22: =+$C$21+E21 -> -1796641 | F22: =+$C$21+F21 -> -1261296.088 | G22: =+$C$21+G21 -> -520388.6571 | H22: =+$C$21+H21 -> 1538955.774
B24: Periodo de Recuperación de la Inversión | D24: =PRI(G19,C4,G21,H20) -> 4.25269627
